[Event "Late-Titled-Tuesday-Blitz-April-02-2024"]
[Site "Chess.com"]
[Date "2024.04.02"]
[Round "5"]
[White "Mariia89"]
[Black "kingofthenil"]
[Result "0-1"]
[WhiteElo "2279"]
[BlackElo "2786"]
[TimeControl "180+1"]
[EndTime "14:52:04 PDT"]
[Termination "kingofthenil won on time"]

1. d4 {[%clk 0:02:59.3]} 1... Nf6 {[%clk 0:02:54.7]} 2. Nf3 {[%clk 0:02:59.7]}
2... e6 {[%clk 0:02:45.1]} 3. Bg5 {[%clk 0:02:59.2]} 3... h6 {[%clk 0:02:43.5]}
4. Bh4 {[%clk 0:02:59.3]} 4... d6 {[%clk 0:02:41.8]} 5. e3 {[%clk 0:02:58.2]}
5... g5 {[%clk 0:02:41.9]} 6. Bg3 {[%clk 0:02:58.2]} 6... Nh5 {[%clk 0:02:42.8]}
7. Bd3 {[%clk 0:02:42.5]} 7... Bg7 {[%clk 0:02:42.3]} 8. Nfd2 {[%clk 0:02:22.7]}
8... Nxg3 {[%clk 0:02:39.5]} 9. hxg3 {[%clk 0:02:22.7]} 9... Qe7 {[%clk
0:02:26.7]} 10. c3 {[%clk 0:02:09.4]} 10... Bd7 {[%clk 0:02:24.2]} 11. c4 {[%clk
0:01:49.8]} 11... c5 {[%clk 0:02:22.6]} 12. Nf3 {[%clk 0:01:46.4]} 12... Nc6
{[%clk 0:02:21]} 13. Be4 {[%clk 0:01:38.4]} 13... g4 {[%clk 0:02:18]} 14. Bxc6
{[%clk 0:01:34.5]} 14... Bxc6 {[%clk 0:02:16.8]} 15. Nh4 {[%clk 0:01:35.1]}
15... h5 {[%clk 0:02:14.3]} 16. Nc3 {[%clk 0:01:34.5]} 16... O-O-O {[%clk
0:02:08.7]} 17. d5 {[%clk 0:01:17]} 17... Bxc3+ {[%clk 0:02:04.4]} 18. bxc3
{[%clk 0:01:16.2]} 18... exd5 {[%clk 0:02:05.3]} 19. cxd5 {[%clk 0:01:15.4]}
19... Bb5 {[%clk 0:02:05.6]} 20. c4 {[%clk 0:00:58.2]} 20... Bxc4 {[%clk
0:02:04.2]} 21. Rc1 {[%clk 0:00:56.7]} 21... Ba6 {[%clk 0:02:04]} 22. Qd2 {[%clk
0:00:38.1]} 22... Qe4 {[%clk 0:02:01.3]} 23. f3 {[%clk 0:00:20.5]} 23... gxf3
{[%clk 0:01:56.4]} 24. gxf3 {[%clk 0:00:21.4]} 24... Qe5 {[%clk 0:01:56.9]} 25.
Kf2 {[%clk 0:00:21.4]} 25... Rhg8 {[%clk 0:01:56.7]} 26. Rhg1 {[%clk 0:00:21.6]}
26... Qf6 {[%clk 0:01:55.3]} 27. Rc3 {[%clk 0:00:17.9]} 27... Rde8 {[%clk
0:01:54.3]} 28. Ra3 {[%clk 0:00:17.4]} 28... Re4 {[%clk 0:01:51.2]} 29. Rxa6
{[%clk 0:00:12.2]} 29... bxa6 {[%clk 0:01:50.6]} 30. Rb1 {[%clk 0:00:10.2]}
30... Rxh4 {[%clk 0:01:49.1]} 31. Qa5 {[%clk 0:00:02.5]} 31... Rh2+ {[%clk
0:01:47.3]} 32. Ke1 {[%clk 0:00:02.5]} 32... Rh1+ {[%clk 0:01:44.2]} 33. Kd2
{[%clk 0:00:02.6]} 33... Rxb1 {[%clk 0:01:44.3]} 34. Qxa6+ {[%clk 0:00:02.6]}
34... Rb7 {[%clk 0:01:45.2]} 35. Qc6+ {[%clk 0:00:02.6]} 35... Kb8 {[%clk
0:01:46.1]} 0-1

[Event "Late-Titled-Tuesday-Blitz-April-02-2024"]
[Site "Chess.com"]
[Date "2024.04.02"]
[Round "5"]
[White "SaqoChess_Twitch"]
[Black "TheoSlade"]
[Result "1-0"]
[WhiteElo "2667"]
[BlackElo "2389"]
[TimeControl "180+1"]
[EndTime "14:52:07 PDT"]
[Termination "SaqoChess_Twitch won by checkmate"]

1. d4 {[%clk 0:03:00.9]} 1... d5 {[%clk 0:03:00]} 2. c4 {[%clk 0:02:58.9]} 2...
e6 {[%clk 0:03:00.6]} 3. Nc3 {[%clk 0:02:58.8]} 3... a6 {[%clk 0:03:01.1]} 4.
cxd5 {[%clk 0:02:56.9]} 4... exd5 {[%clk 0:03:02]} 5. Nf3 {[%clk 0:02:57.5]}
5... c6 {[%clk 0:03:02.6]} 6. Bf4 {[%clk 0:02:57.7]} 6... Bd6 {[%clk 0:03:03.2]}
7. Bxd6 {[%clk 0:02:57.1]} 7... Qxd6 {[%clk 0:03:04.1]} 8. e3 {[%clk 0:02:57.2]}
8... Ne7 {[%clk 0:03:04.5]} 9. Bd3 {[%clk 0:02:57.3]} 9... Bf5 {[%clk
0:03:00.8]} 10. O-O {[%clk 0:02:56.8]} 10... O-O {[%clk 0:02:59.1]} 11. Ne5
{[%clk 0:02:56.6]} 11... Nd7 {[%clk 0:02:58]} 12. Nxd7 {[%clk 0:02:54.2]} 12...
Qxd7 {[%clk 0:02:53.4]} 13. Bxf5 {[%clk 0:02:53.2]} 13... Nxf5 {[%clk
0:02:53.3]} 14. Na4 {[%clk 0:02:51.3]} 14... Nd6 {[%clk 0:02:50.7]} 15. Nb6
{[%clk 0:02:50.6]} 15... Qe7 {[%clk 0:02:45.8]} 16. Nxa8 {[%clk 0:02:51.1]}
16... Rxa8 {[%clk 0:02:46.7]} 17. Qb3 {[%clk 0:02:50.7]} 17... f5 {[%clk
0:02:42.7]} 18. Qa3 {[%clk 0:02:50.4]} 18... Rf8 {[%clk 0:02:38.7]} 19. Rac1
{[%clk 0:02:50.9]} 19... Qf6 {[%clk 0:02:27.7]} 20. b3 {[%clk 0:02:48.9]} 20...
f4 {[%clk 0:02:19.3]} 21. exf4 {[%clk 0:02:45.6]} 21... Qxf4 {[%clk 0:02:16.2]}
22. Qb2 {[%clk 0:02:42.7]} 22... Nf5 {[%clk 0:02:13]} 23. Rcd1 {[%clk
0:02:42.3]} 23... Nh4 {[%clk 0:02:11.1]} 24. f3 {[%clk 0:02:40.2]} 24... Qg5
{[%clk 0:02:01.3]} 25. Kh1 {[%clk 0:02:38.9]} 25... Nf5 {[%clk 0:02:01.2]} 26.
Rfe1 {[%clk 0:02:31.7]} 26... Ne3 {[%clk 0:01:49.1]} 27. Qd2 {[%clk 0:02:28.3]}
27... Re8 {[%clk 0:01:42.3]} 28. Rc1 {[%clk 0:02:26.7]} 28... Re6 {[%clk
0:01:13.8]} 29. Re2 {[%clk 0:02:08.7]} 29... Qh6 {[%clk 0:00:35.7]} 30. Rce1
{[%clk 0:02:05.4]} 30... Nf5 {[%clk 0:00:29.2]} 31. Qxh6 {[%clk 0:01:57.7]}
31... Rxh6 {[%clk 0:00:30.1]} 32. Kg1 {[%clk 0:01:55.7]} 32... Kf7 {[%clk
0:00:21.8]} 33. Re5 {[%clk 0:01:52.9]} 33... Rf6 {[%clk 0:00:15.9]} 34. Rd1
{[%clk 0:01:50.5]} 34... Nd6 {[%clk 0:00:12.4]} 35. h4 {[%clk 0:01:49.9]} 35...
Rf4 {[%clk 0:00:12]} 36. a4 {[%clk 0:01:49.1]} 36... Rxh4 {[%clk 0:00:11]} 37.
g4 {[%clk 0:01:46.4]} 37... Rh6 {[%clk 0:00:09.9]} 38. Kg2 {[%clk 0:01:46.5]}
38... Rf6 {[%clk 0:00:09.3]} 39. Kg3 {[%clk 0:01:46]} 39... Nc8 {[%clk
0:00:09.1]} 40. f4 {[%clk 0:01:45.9]} 40... Ne7 {[%clk 0:00:08.5]} 41. f5 {[%clk
0:01:46.2]} 41... Rd6 {[%clk 0:00:08.7]} 42. Rde1 {[%clk 0:01:46]} 42... Ng8
{[%clk 0:00:09.1]} 43. g5 {[%clk 0:01:45.3]} 43... Rd7 {[%clk 0:00:08.5]} 44.
Kg4 {[%clk 0:01:44.4]} 44... h6 {[%clk 0:00:08.8]} 45. g6+ {[%clk 0:01:44.3]}
45... Kf6 {[%clk 0:00:08.2]} 46. Re6# {[%clk 0:01:44.7]} 1-0

[Event "Late-Titled-Tuesday-Blitz-April-02-2024"]
[Site "Chess.com"]
[Date "2024.04.02"]
[Round "5"]
[White "DraningWaterHi"]
[Black "picturesquecheck"]
[Result "1-0"]
[WhiteElo "2294"]
[BlackElo "2379"]
[TimeControl "180+1"]
[EndTime "14:52:09 PDT"]
[Termination "DraningWaterHi won by resignation"]

1. d4 {[%clk 0:03:00.9]} 1... d5 {[%clk 0:02:57.5]} 2. Bf4 {[%clk 0:03:00.2]}
2... Nf6 {[%clk 0:02:56.3]} 3. e3 {[%clk 0:03:00.6]} 3... e6 {[%clk 0:02:56.3]}
4. Nd2 {[%clk 0:03:00.9]} 4... Bd6 {[%clk 0:02:56.7]} 5. Ngf3 {[%clk 0:03:00.4]}
5... O-O {[%clk 0:02:56.3]} 6. Bd3 {[%clk 0:02:59.9]} 6... c5 {[%clk 0:02:56.6]}
7. c3 {[%clk 0:03:00.3]} 7... Qc7 {[%clk 0:02:56.7]} 8. Ne5 {[%clk 0:02:54.9]}
8... Nbd7 {[%clk 0:02:55.6]} 9. Ndf3 {[%clk 0:02:54.7]} 9... b6 {[%clk
0:02:50.7]} 10. O-O {[%clk 0:02:54.3]} 10... Bb7 {[%clk 0:02:47.7]} 11. Re1
{[%clk 0:02:53.3]} 11... Rac8 {[%clk 0:02:41.4]} 12. Rc1 {[%clk 0:02:53]} 12...
Rfd8 {[%clk 0:02:14.9]} 13. h3 {[%clk 0:02:45.4]} 13... Ne4 {[%clk 0:02:03.5]}
14. Nxd7 {[%clk 0:02:41.3]} 14... Bxf4 {[%clk 0:01:54.3]} 15. exf4 {[%clk
0:02:40.3]} 15... Rxd7 {[%clk 0:01:36.9]} 16. Ne5 {[%clk 0:02:40]} 16... Rdd8
{[%clk 0:01:33.9]} 17. f3 {[%clk 0:02:39.9]} 17... Nf6 {[%clk 0:01:31.8]} 18.
Qd2 {[%clk 0:02:38.5]} 18... Qe7 {[%clk 0:01:26.7]} 19. f5 {[%clk 0:02:38.3]}
19... cxd4 {[%clk 0:01:21.8]} 20. cxd4 {[%clk 0:02:38.1]} 20... Rxc1 {[%clk
0:01:21.4]} 21. Rxc1 {[%clk 0:02:38.2]} 21... Rc8 {[%clk 0:01:04.8]} 22. fxe6
{[%clk 0:02:38.1]} 22... fxe6 {[%clk 0:01:00.1]} 23. a3 {[%clk 0:02:37.6]} 23...
Nh5 {[%clk 0:00:55.2]} 24. g4 {[%clk 0:02:20]} 24... Rxc1+ {[%clk 0:00:42.9]}
25. Qxc1 {[%clk 0:02:19.4]} 25... Qh4 {[%clk 0:00:41.4]} 26. Qf1 {[%clk
0:01:53.2]} 26... Nf4 {[%clk 0:00:33.5]} 27. Kh2 {[%clk 0:01:52]} 27... g6
{[%clk 0:00:16.3]} 28. Bb5 {[%clk 0:01:46]} 28... Kg7 {[%clk 0:00:14.4]} 29. b4
{[%clk 0:01:34.8]} 29... a6 {[%clk 0:00:13.3]} 30. Bd3 {[%clk 0:01:34.5]} 30...
a5 {[%clk 0:00:12.8]} 31. b5 {[%clk 0:01:34.4]} 31... Bc8 {[%clk 0:00:12.3]} 32.
a4 {[%clk 0:01:34.5]} 32... Bd7 {[%clk 0:00:12.6]} 33. Nxd7 {[%clk 0:01:33.8]}
33... h5 {[%clk 0:00:11.9]} 34. Ne5 {[%clk 0:01:33.4]} 34... Qf6 {[%clk
0:00:04.6]} 35. Qf2 {[%clk 0:01:30.8]} 35... Nxd3 {[%clk 0:00:04]} 36. Nxd3
{[%clk 0:01:30.5]} 36... e5 {[%clk 0:00:04]} 37. dxe5 {[%clk 0:01:30.4]} 1-0

[Event "Late-Titled-Tuesday-Blitz-April-02-2024"]
[Site "Chess.com"]
[Date "2024.04.02"]
[Round "5"]
[White "dedpihto_v_kozhanom_palto"]
[Black "Veleamater"]
[Result "1-0"]
[WhiteElo "2722"]
[BlackElo "2423"]
[TimeControl "180+1"]
[EndTime "14:52:13 PDT"]
[Termination "dedpihto_v_kozhanom_palto won on time"]

1. c4 {[%clk 0:03:00.9]} 1... Nf6 {[%clk 0:02:59.3]} 2. Nc3 {[%clk 0:03:01.5]}
2... g6 {[%clk 0:02:59.9]} 3. e4 {[%clk 0:03:02.1]} 3... d6 {[%clk 0:02:58.7]}
4. d4 {[%clk 0:03:02.6]} 4... Bg7 {[%clk 0:02:59.3]} 5. f4 {[%clk 0:03:03.2]}
5... O-O {[%clk 0:02:59.5]} 6. Nf3 {[%clk 0:03:03.9]} 6... c5 {[%clk 0:02:59.5]}
7. d5 {[%clk 0:03:04.5]} 7... Bg4 {[%clk 0:02:59.6]} 8. Be2 {[%clk 0:03:04.9]}
8... e6 {[%clk 0:02:51.6]} 9. O-O {[%clk 0:03:05.2]} 9... Re8 {[%clk 0:02:51.1]}
10. h3 {[%clk 0:03:05]} 10... Bxf3 {[%clk 0:02:49.2]} 11. Bxf3 {[%clk
0:03:05.9]} 11... exd5 {[%clk 0:02:49.6]} 12. cxd5 {[%clk 0:03:06.8]} 12... Nbd7
{[%clk 0:02:47.6]} 13. g4 {[%clk 0:03:07.3]} 13... c4 {[%clk 0:02:44.9]} 14. g5
{[%clk 0:03:07.4]} 14... Nh5 {[%clk 0:02:37.6]} 15. Bxh5 {[%clk 0:03:07.7]}
15... gxh5 {[%clk 0:02:38.2]} 16. Qxh5 {[%clk 0:03:01.2]} 16... Bxc3 {[%clk
0:02:36.2]} 17. bxc3 {[%clk 0:03:00.4]} 17... Rxe4 {[%clk 0:02:36.6]} 18. f5
{[%clk 0:02:52.2]} 18... Ne5 {[%clk 0:02:17.2]} 19. Bf4 {[%clk 0:02:47.8]} 19...
Nd3 {[%clk 0:02:14.4]} 20. Bg3 {[%clk 0:02:44.3]} 20... Qb6+ {[%clk 0:01:51.7]}
21. Kh1 {[%clk 0:02:44.6]} 21... Qe3 {[%clk 0:01:45.9]} 22. g6 {[%clk
0:02:43.7]} 22... fxg6 {[%clk 0:01:20.7]} 23. fxg6 {[%clk 0:02:44.6]} 23... h6
{[%clk 0:01:21]} 24. g7 {[%clk 0:02:34.1]} 24... Re7 {[%clk 0:01:05.6]} 25. Rf8+
{[%clk 0:02:16]} 25... Rxf8 {[%clk 0:00:58.8]} 26. gxf8=Q+ {[%clk 0:02:16.9]}
26... Kxf8 {[%clk 0:00:58]} 27. Bxd6 {[%clk 0:02:17.4]} 27... Qe4+ {[%clk
0:00:34.9]} 28. Kh2 {[%clk 0:02:17.5]} 28... Nf4 {[%clk 0:00:18.8]} 29. Qxh6+
{[%clk 0:01:44.5]} 29... Ke8 {[%clk 0:00:18.6]} 30. Qxf4 {[%clk 0:01:45.1]}
30... Qe2+ {[%clk 0:00:10.4]} 31. Kh1 {[%clk 0:01:45.4]} 31... Re3 {[%clk
0:00:08.7]} 32. Qg4 {[%clk 0:01:35.3]} 32... Qd3 {[%clk 0:00:01.5]} 33. Qc8+
{[%clk 0:01:29.9]} 33... Kf7 {[%clk 0:00:01.1]} 34. Qf8+ {[%clk 0:01:29.3]}
34... Kg6 {[%clk 0:00:01.4]} 35. Rg1+ {[%clk 0:01:29.6]} 35... Kh5 {[%clk
0:00:01.6]} 36. Qh8+ {[%clk 0:01:28.4]} 1-0

[Event "Late-Titled-Tuesday-Blitz-April-02-2024"]
[Site "Chess.com"]
[Date "2024.04.02"]
[Round "5"]
[White "Aygehovit1992"]
[Black "ansko1999"]
[Result "1-0"]
[WhiteElo "2871"]
[BlackElo "2625"]
[TimeControl "180+1"]
[EndTime "14:52:18 PDT"]
[Termination "Aygehovit1992 won by resignation"]

1. e4 {[%clk 0:02:31.2]} 1... d6 {[%clk 0:02:58.3]} 2. d4 {[%clk 0:02:31.3]}
2... Nf6 {[%clk 0:02:58.5]} 3. Nc3 {[%clk 0:02:32.2]} 3... c6 {[%clk 0:02:58.5]}
4. f4 {[%clk 0:02:31]} 4... Qa5 {[%clk 0:02:57.7]} 5. Bd3 {[%clk 0:02:26.8]}
5... e5 {[%clk 0:02:56.1]} 6. Nf3 {[%clk 0:02:24.1]} 6... exd4 {[%clk
0:02:54.7]} 7. Nxd4 {[%clk 0:02:24.8]} 7... g6 {[%clk 0:02:53.3]} 8. Nb3 {[%clk
0:02:17.6]} 8... Qc7 {[%clk 0:02:51.3]} 9. O-O {[%clk 0:02:16.5]} 9... Bg7
{[%clk 0:02:51.1]} 10. f5 {[%clk 0:02:13.4]} 10... O-O {[%clk 0:02:46.6]} 11.
Qe1 {[%clk 0:02:13.7]} 11... Nbd7 {[%clk 0:02:19.4]} 12. Qh4 {[%clk 0:02:12.9]}
12... Ne5 {[%clk 0:02:16.9]} 13. Bh6 {[%clk 0:02:11.3]} 13... Bxh6 {[%clk
0:02:09.9]} 14. Qxh6 {[%clk 0:02:11.2]} 14... Nfg4 {[%clk 0:02:02.9]} 15. Qh4
{[%clk 0:02:10.7]} 15... Qd8 {[%clk 0:01:44.9]} 16. f6 {[%clk 0:02:07.1]} 16...
Qb6+ {[%clk 0:01:44.5]} 17. Kh1 {[%clk 0:02:06.9]} 17... Qe3 {[%clk 0:01:44.5]}
18. Be2 {[%clk 0:01:55.8]} 18... Qh6 {[%clk 0:01:36.8]} 19. Qxh6 {[%clk
0:01:55.9]} 19... Nxh6 {[%clk 0:01:37.1]} 20. h3 {[%clk 0:01:56.2]} 20... Be6
{[%clk 0:01:30.4]} 21. Rad1 {[%clk 0:01:55.3]} 21... Rfd8 {[%clk 0:01:29.7]} 22.
Nd4 {[%clk 0:01:52]} 22... Bc4 {[%clk 0:01:26.7]} 23. g4 {[%clk 0:01:48.4]}
23... Kf8 {[%clk 0:01:25.8]} 24. g5 {[%clk 0:01:47.5]} 24... Ng8 {[%clk
0:01:25.9]} 25. b3 {[%clk 0:01:36.2]} 25... Bxe2 {[%clk 0:01:24.1]} 26. Ncxe2
{[%clk 0:01:33.2]} 26... d5 {[%clk 0:01:21.9]} 27. exd5 {[%clk 0:01:30.3]} 27...
Rxd5 {[%clk 0:01:22.1]} 28. Nf4 {[%clk 0:01:31]} 28... Ra5 {[%clk 0:01:10.9]}
29. Rfe1 {[%clk 0:01:25.4]} 29... Re8 {[%clk 0:00:52.3]} 30. h4 {[%clk
0:01:11.1]} 30... h6 {[%clk 0:00:51.9]} 31. Nde6+ {[%clk 0:01:04.5]} 31... fxe6
{[%clk 0:00:31.4]} 32. Rxe5 {[%clk 0:01:03.6]} 32... hxg5 {[%clk 0:00:21]} 33.
hxg5 {[%clk 0:01:02.7]} 1-0

[Event "Late-Titled-Tuesday-Blitz-April-02-2024"]
[Site "Chess.com"]
[Date "2024.04.02"]
[Round "5"]
[White "ritanovikova"]
[Black "egnfanclub"]
[Result "1-0"]
[WhiteElo "2173"]
[BlackElo "2364"]
[TimeControl "180+1"]
[EndTime "14:52:20 PDT"]
[Termination "ritanovikova won on time"]

1. e4 {[%clk 0:02:54.8]} 1... e5 {[%clk 0:02:04.2]} 2. Nf3 {[%clk 0:02:54.3]}
2... Nc6 {[%clk 0:02:03.8]} 3. Bb5 {[%clk 0:02:54.3]} 3... a6 {[%clk 0:02:03.7]}
4. Ba4 {[%clk 0:02:54.4]} 4... d6 {[%clk 0:02:04.6]} 5. Bxc6+ {[%clk 0:02:52.6]}
5... bxc6 {[%clk 0:02:04.6]} 6. d4 {[%clk 0:02:52.8]} 6... f6 {[%clk 0:02:05.1]}
7. dxe5 {[%clk 0:02:52.5]} 7... fxe5 {[%clk 0:02:05.1]} 8. h3 {[%clk 0:02:47.5]}
8... Nf6 {[%clk 0:02:05.3]} 9. Nc3 {[%clk 0:02:46.5]} 9... Be7 {[%clk
0:02:05.6]} 10. O-O {[%clk 0:02:45.8]} 10... O-O {[%clk 0:02:06.2]} 11. Qe2
{[%clk 0:02:46]} 11... h6 {[%clk 0:02:06.5]} 12. Rd1 {[%clk 0:02:43.3]} 12... a5
{[%clk 0:02:07]} 13. Nxe5 {[%clk 0:02:38]} 13... Ba6 {[%clk 0:02:07.2]} 14. Qe1
{[%clk 0:02:20.6]} 14... Qe8 {[%clk 0:02:07.6]} 15. Nd3 {[%clk 0:02:04.6]} 15...
Nh5 {[%clk 0:01:55.4]} 16. e5 {[%clk 0:02:02.2]} 16... d5 {[%clk 0:01:52.6]} 17.
Qe2 {[%clk 0:01:54]} 17... Qg6 {[%clk 0:01:29.1]} 18. Qg4 {[%clk 0:01:51.2]}
18... Qe8 {[%clk 0:01:16.8]} 19. Bxh6 {[%clk 0:01:42.9]} 19... Bc8 {[%clk
0:01:16]} 20. e6 {[%clk 0:01:39]} 20... Bf6 {[%clk 0:01:03.7]} 21. Re1 {[%clk
0:01:30.3]} 21... Kh7 {[%clk 0:00:55.5]} 22. Bg5 {[%clk 0:01:28.4]} 22... Bxc3
{[%clk 0:00:32.7]} 23. bxc3 {[%clk 0:01:26.9]} 23... g6 {[%clk 0:00:20.4]} 24.
Nc5 {[%clk 0:01:07.4]} 24... Rf5 {[%clk 0:00:16.2]} 25. Qh4 {[%clk 0:01:02.8]}
1-0

[Event "Late-Titled-Tuesday-Blitz-April-02-2024"]
[Site "Chess.com"]
[Date "2024.04.02"]
[Round "5"]
[White "youngdinousaur"]
[Black "misterlamine"]
[Result "0-1"]
[WhiteElo "2231"]
[BlackElo "2466"]
[TimeControl "180+1"]
[EndTime "14:52:21 PDT"]
[Termination "misterlamine won by resignation"]

1. d4 {[%clk 0:03:00.9]} 1... c6 {[%clk 0:03:00.1]} 2. Nf3 {[%clk 0:03:01.6]}
2... d5 {[%clk 0:03:00.7]} 3. Bf4 {[%clk 0:03:01.2]} 3... Nf6 {[%clk 0:03:00.7]}
4. e3 {[%clk 0:03:01.3]} 4... e6 {[%clk 0:03:01.1]} 5. c4 {[%clk 0:03:00.5]}
5... Bb4+ {[%clk 0:02:59]} 6. Nc3 {[%clk 0:03:00.4]} 6... Qa5 {[%clk 0:02:57.8]}
7. Qb3 {[%clk 0:02:56.3]} 7... Ne4 {[%clk 0:02:38.2]} 8. Rc1 {[%clk 0:02:55.5]}
8... Nxc3 {[%clk 0:02:37.8]} 9. bxc3 {[%clk 0:02:56.4]} 9... Ba3 {[%clk
0:02:34.1]} 10. Rb1 {[%clk 0:02:54.4]} 10... Nd7 {[%clk 0:02:26.9]} 11. cxd5
{[%clk 0:02:47]} 11... exd5 {[%clk 0:02:23.8]} 12. Bd3 {[%clk 0:02:47.4]} 12...
O-O {[%clk 0:02:13.9]} 13. O-O {[%clk 0:02:47.3]} 13... Nf6 {[%clk 0:02:05.2]}
14. c4 {[%clk 0:02:45.9]} 14... Be6 {[%clk 0:01:55.8]} 15. Qxb7 {[%clk
0:02:38.6]} 15... dxc4 {[%clk 0:01:54]} 16. Bc2 {[%clk 0:02:36.5]} 16... Qc3
{[%clk 0:01:50.7]} 17. Ba4 {[%clk 0:02:29.9]} 17... Nd5 {[%clk 0:01:39.8]} 18.
Bg3 {[%clk 0:02:18.7]} 18... Bf5 {[%clk 0:01:32.1]} 19. Bxc6 {[%clk 0:01:40.9]}
19... Bxb1 {[%clk 0:01:28.9]} 20. Bxd5 {[%clk 0:01:41.3]} 20... Bd3 {[%clk
0:01:25.2]} 21. Be5 {[%clk 0:01:19]} 21... Bxf1 {[%clk 0:01:18.4]} 22. Bxf7+
{[%clk 0:01:17.3]} 22... Rxf7 {[%clk 0:01:05.7]} 23. Qxa8+ {[%clk 0:01:16.7]}
23... Bf8 {[%clk 0:01:06.1]} 24. Kxf1 {[%clk 0:01:09.3]} 24... Qd3+ {[%clk
0:01:04.7]} 25. Ke1 {[%clk 0:01:06.6]} 25... c3 {[%clk 0:01:04.1]} 26. Qc8
{[%clk 0:00:44.3]} 26... Qb1+ {[%clk 0:01:01.1]} 27. Ke2 {[%clk 0:00:34.2]}
27... c2 {[%clk 0:01:01.2]} 28. Nd2 {[%clk 0:00:18.5]} 28... Qd1+ {[%clk
0:00:54]} 29. Kd3 {[%clk 0:00:18.7]} 29... c1=Q {[%clk 0:00:52.6]} 0-1

[Event "Late-Titled-Tuesday-Blitz-April-02-2024"]
[Site "Chess.com"]
[Date "2024.04.02"]
[Round "5"]
[White "combidharma"]
[Black "Crazy_girl99"]
[Result "0-1"]
[WhiteElo "2844"]
[BlackElo "2639"]
[TimeControl "180+1"]
[EndTime "14:52:25 PDT"]
[Termination "Crazy_girl99 won on time"]

1. e4 {[%clk 0:02:51.8]} 1... e5 {[%clk 0:02:49.6]} 2. Nf3 {[%clk 0:02:50.3]}
2... Nc6 {[%clk 0:02:49.6]} 3. d4 {[%clk 0:02:47.7]} 3... exd4 {[%clk
0:02:49.5]} 4. Nxd4 {[%clk 0:02:48.6]} 4... Nf6 {[%clk 0:02:50.2]} 5. Nxc6
{[%clk 0:02:48.1]} 5... bxc6 {[%clk 0:02:50.5]} 6. e5 {[%clk 0:02:48.6]} 6...
Qe7 {[%clk 0:02:50.9]} 7. Qe2 {[%clk 0:02:49.2]} 7... Nd5 {[%clk 0:02:51.2]} 8.
h4 {[%clk 0:02:49.9]} 8... a5 {[%clk 0:02:50.6]} 9. g3 {[%clk 0:02:48.5]} 9...
a4 {[%clk 0:02:50]} 10. c4 {[%clk 0:02:42.7]} 10... Ba6 {[%clk 0:02:49.4]} 11.
Bg2 {[%clk 0:02:35.4]} 11... g6 {[%clk 0:02:21.8]} 12. O-O {[%clk 0:02:26.8]}
12... Bg7 {[%clk 0:02:21]} 13. Re1 {[%clk 0:02:08.7]} 13... O-O {[%clk
0:02:20.3]} 14. Nd2 {[%clk 0:02:03.2]} 14... Rae8 {[%clk 0:02:06.6]} 15. Nf3
{[%clk 0:01:50.4]} 15... f6 {[%clk 0:02:05.8]} 16. Qd1 {[%clk 0:01:32.8]} 16...
Bxc4 {[%clk 0:01:57.9]} 17. Qxa4 {[%clk 0:00:59.2]} 17... Bb5 {[%clk 0:01:57.4]}
18. Qc2 {[%clk 0:00:47.4]} 18... fxe5 {[%clk 0:01:56.9]} 19. Bg5 {[%clk
0:00:46.4]} 19... Qf7 {[%clk 0:01:53.4]} 20. a4 {[%clk 0:00:26.7]} 20... Ba6
{[%clk 0:01:52.5]} 21. Re4 {[%clk 0:00:20.3]} 21... h6 {[%clk 0:01:41]} 22. Bd2
{[%clk 0:00:19.6]} 22... Qf5 {[%clk 0:01:40.6]} 23. Rae1 {[%clk 0:00:17]} 23...
Rb8 {[%clk 0:01:32.3]} 24. g4 {[%clk 0:00:15.8]} 24... Qf7 {[%clk 0:01:28]} 25.
Qc1 {[%clk 0:00:05.3]} 25... Rb3 {[%clk 0:01:24.3]} 26. Bxh6 {[%clk 0:00:04.4]}
26... Rxf3 {[%clk 0:01:22.1]} 27. Bxg7 {[%clk 0:00:04.9]} 27... Kxg7 {[%clk
0:01:21.1]} 28. Bxf3 {[%clk 0:00:02.6]} 28... Qxf3 {[%clk 0:01:21.4]} 29. Qd2
{[%clk 0:00:02.5]} 29... Nf4 {[%clk 0:01:11.3]} 30. Rxf4 {[%clk 0:00:03]} 30...
Rxf4 {[%clk 0:01:07.5]} 0-1

[Event "Late-Titled-Tuesday-Blitz-April-02-2024"]
[Site "Chess.com"]
[Date "2024.04.02"]
[Round "5"]
[White "Darkdefense15"]
[Black "martinez_95"]
[Result "1-0"]
[WhiteElo "2375"]
[BlackElo "2150"]
[TimeControl "180+1"]
[EndTime "14:52:28 PDT"]
[Termination "Darkdefense15 won by resignation"]

1. d4 {[%clk 0:02:36.7]} 1... Nf6 {[%clk 0:02:45]} 2. Bf4 {[%clk 0:02:36.8]}
2... c5 {[%clk 0:02:45.1]} 3. dxc5 {[%clk 0:02:36.7]} 3... Nc6 {[%clk
0:02:42.9]} 4. Nf3 {[%clk 0:02:35.1]} 4... e6 {[%clk 0:02:40.4]} 5. Bd6 {[%clk
0:02:34.3]} 5... Bxd6 {[%clk 0:02:35]} 6. cxd6 {[%clk 0:02:35.2]} 6... O-O
{[%clk 0:02:33.6]} 7. Nbd2 {[%clk 0:02:19.3]} 7... e5 {[%clk 0:02:26.7]} 8. e4
{[%clk 0:02:15.5]} 8... Qb6 {[%clk 0:02:15]} 9. Bd3 {[%clk 0:02:11.7]} 9... Re8
{[%clk 0:01:54.3]} 10. Nc4 {[%clk 0:02:08.9]} 10... Qc5 {[%clk 0:01:53.6]} 11.
c3 {[%clk 0:02:06.2]} 11... b5 {[%clk 0:01:50.9]} 12. b4 {[%clk 0:02:03.6]}
12... Nxb4 {[%clk 0:01:45.9]} 13. cxb4 {[%clk 0:02:03.8]} 13... Qxb4+ {[%clk
0:01:46]} 14. Ncd2 {[%clk 0:02:04.4]} 14... Qxd6 {[%clk 0:01:44.4]} 15. Bxb5
{[%clk 0:02:02.3]} 15... Nxe4 {[%clk 0:01:42]} 16. Nxe4 {[%clk 0:01:55.9]} 16...
Qb4+ {[%clk 0:01:41.5]} 17. Qd2 {[%clk 0:01:53]} 17... Qxe4+ {[%clk 0:01:39.9]}
18. Be2 {[%clk 0:01:52.6]} 18... Ba6 {[%clk 0:01:35.6]} 19. Kf1 {[%clk
0:01:48.7]} 19... Bxe2+ {[%clk 0:01:26.3]} 20. Qxe2 {[%clk 0:01:49.6]} 20... Qf4
{[%clk 0:01:06.7]} 21. g3 {[%clk 0:01:45.7]} 21... Qf5 {[%clk 0:01:01.4]} 22.
Kg2 {[%clk 0:01:43.1]} 22... e4 {[%clk 0:01:01.3]} 23. Nd4 {[%clk 0:01:42.7]}
23... Qd5 {[%clk 0:01:00.7]} 24. Qe3 {[%clk 0:01:41.1]} 24... Rab8 {[%clk
0:00:54]} 25. Nb3 {[%clk 0:01:34.7]} 25... Rb6 {[%clk 0:00:50.8]} 26. Rhd1
{[%clk 0:01:32.7]} 26... Qh5 {[%clk 0:00:49.8]} 27. h4 {[%clk 0:00:55.7]} 27...
Rf6 {[%clk 0:00:49.1]} 28. Rxd7 {[%clk 0:00:46.8]} 28... Rf3 {[%clk 0:00:47.1]}
29. Qxe4 {[%clk 0:00:46.9]} 1-0